Workbook

Sheet Data Set
B2: Sample Data Set
B4: Product | C4: Price (Euro) | D4: Price (USD) | E4: Price (GBP) | F4: Price (JPY)
B5: Apple | C5: 6.25
B6: Orange | C6: 4.75
B7: Banana | C7: 3.8
B8: Pineapple | C8: 4.7
B9: Lemon | C9: 2.5
B11: Exchange Rate | C11: EUR-USD | D11: EUR-GBP | E11: EUR-JPY
C12: 1.136 | D12: 0.8925 | E12: 128.38

Sheet CTRL+Enter
B2: Pressing CTRL + Enter Keys
B4: Product | C4: Price (Euro) | D4: Price (USD) | E4: Price (GBP) | F4: Price (JPY)
B5: Apple | C5: 6.25 | D5: =$C5*C$12 -> 7.1 | E5: 5.578125 | F5: 802.375
B6: Orange | C6: 4.75 | D6: 5.396 | E6: 4.239375 | F6: 609.805
B7: Banana | C7: 3.8 | D7: 4.3168 | E7: 3.3915 | F7: 487.844
B8: Pineapple | C8: 4.7 | D8: 5.3392 | E8: 4.19475 | F8: 603.386
B9: Lemon | C9: 2.5 | D9: 2.84 | E9: 2.23125 | F9: 320.95
B11: Exchange Rate | C11: EUR-USD | D11: EUR-GBP | E11: EUR-JPY
C12: 1.136 | D12: 0.8925 | E12: 128.38

Sheet CTRL+R
B2: Pressing CTRL + R Keys
B4: Product | C4: Price (Euro) | D4: Price (USD) | E4: Price (GBP) | F4: Price (JPY)
B5: Apple | C5: 6.25 | D5: =$C5*C$12 -> 7.1 | E5: =$C5*D$12 -> 5.578125 | F5: =$C5*E$12 -> 802.375
B6: Orange | C6: 4.75 | D6: =$C6*C$12 -> 5.396 | E6: 4.239375 | F6: =$C6*E$12 -> 609.805
B7: Banana | C7: 3.8 | D7: 4.3168 | E7: 3.3915 | F7: =$C7*E$12 -> 487.844
B8: Pineapple | C8: 4.7 | D8: 5.3392 | E8: 4.19475 | F8: =$C8*E$12 -> 603.386
B9: Lemon | C9: 2.5 | D9: 2.84 | E9: 2.23125 | F9: =$C9*E$12 -> 320.95
B11: Exchange Rate | C11: EUR-USD | D11: EUR-GBP | E11: EUR-JPY
C12: 1.136 | D12: 0.8925 | E12: 128.38

Sheet CTRL+D
B2: Pressing CTRL + D Keys
B4: Product | C4: Price (Euro) | D4: Price (USD) | E4: Price (GBP) | F4: Price (JPY)
B5: Apple | C5: 6.25 | D5: =$C5*C$12 -> 7.1 | E5: =$C5*D$12 -> 5.578125 | F5: 802.375
B6: Orange | C6: 4.75 | D6: =$C6*C$12 -> 5.396 | E6: 4.239375 | F6: 609.805
B7: Banana | C7: 3.8 | D7: 4.3168 | E7: 3.3915 | F7: 487.844
B8: Pineapple | C8: 4.7 | D8: 5.3392 | E8: 4.19475 | F8: 603.386
B9: Lemon | C9: 2.5 | D9: 2.84 | E9: 2.23125 | F9: 320.95
B11: Exchange Rate | C11: EUR-USD | D11: EUR-GBP | E11: EUR-JPY
C12: 1.136 | D12: 0.8925 | E12: 128.38

Sheet AutoFill
B2: Implying AutoFill Feature
B4: Product | C4: Price (Euro) | D4: Price (USD) | E4: Price (GBP) | F4: Price (JPY)
B5: Apple | C5: 6.25 | D5: =$C5*C$12 -> 7.1
B6: Orange | C6: 4.75
B7: Banana | C7: 3.8
B8: Pineapple | C8: 4.7
B9: Lemon | C9: 2.5
B11: Exchange Rate | C11: EUR-USD | D11: EUR-GBP | E11: EUR-JPY
C12: 1.136 | D12: 0.8925 | E12: 128.38

Sheet Copy and Paste
B2: Utilizing Copy and Paste Command
B4: Product | C4: Price (Euro) | D4: Price (USD) | E4: Price (GBP) | F4: Price (JPY)
B5: Apple | C5: 6.25 | D5: =$C5*C$12 -> 7.1 | E5: =$C5*D$12 -> 5.578125 | F5: 802.375
B6: Orange | C6: 4.75 | D6: =$C6*C$12 -> 5.396 | E6: 4.239375 | F6: 609.805
B7: Banana | C7: 3.8 | D7: =$C7*C$12 -> 4.3168 | E7: 3.3915 | F7: 487.844
B8: Pineapple | C8: 4.7 | D8: =$C8*C$12 -> 5.3392 | E8: 4.19475 | F8: 603.386
B9: Lemon | C9: 2.5 | D9: =$C9*C$12 -> 2.84 | E9: 2.23125 | F9: 320.95
B11: Exchange Rate | C11: EUR-USD | D11: EUR-GBP | E11: EUR-JPY
C12: 1.136 | D12: 0.8925 | E12: 128.38

Sheet Non-adjacent Cells
B2: Copying Formula to Non-adjacent Cells
B4: Product | C4: Price (Euro) | D4: Price (USD) | E4: Price (GBP) | F4: Price (JPY)
B5: Apple | C5: 6.25 | D5: =$C5*C$12 -> 7.1
B6: Orange | C6: 4.75 | E6: =$C6*D$12 -> 4.239375 | F6: =$C6*E$12 -> 609.805
B7: Banana | C7: 3.8 | D7: =$C7*C$12 -> 4.3168
B8: Pineapple | C8: 4.7 | E8: =$C8*D$12 -> 4.19475
B9: Lemon | C9: 2.5 | D9: =$C9*C$12 -> 2.84 | F9: =$C9*E$12 -> 320.95
B11: Exchange Rate | C11: EUR-USD | D11: EUR-GBP | E11: EUR-JPY
C12: 1.136 | D12: 0.8925 | E12: 128.38

Sheet Fill Handle
B2: Using Excel Fill Handle Tool
B4: Product | C4: Price (Euro) | D4: Price (USD) | E4: Price (GBP) | F4: Price (JPY)
B5: Apple | C5: 6.25 | D5: =$C5*C$12 -> 7.1
B6: Orange | C6: 4.75 | D6: =$C6*C$12 -> 5.396
B7: Banana | C7: 3.8 | D7: 4.3168
B8: Pineapple | C8: 4.7 | D8: 5.3392
B9: Lemon | C9: 2.5 | D9: 2.84
B11: Exchange Rate | C11: EUR-USD | D11: EUR-GBP | E11: EUR-JPY
C12: 1.136 | D12: 0.8925 | E12: 128.38

Sheet Excel Table
B2: Inserting Excel Table
B4: Product | C4: Price (Euro) | D4: Price (USD) | E4: Price (GBP) | F4: Price (JPY)
B5: Apple | C5: 6.25 | D5: =$C5*C$12 -> 7.1 | E5: 5.578125 | F5: 802.375
B6: Orange | C6: 4.75 | D6: 5.396 | E6: 4.239375 | F6: 609.805
B7: Banana | C7: 3.8 | D7: 4.3168 | E7: 3.3915 | F7: 487.844
B8: Pineapple | C8: 4.7 | D8: 5.3392 | E8: 4.19475 | F8: 603.386
B9: Lemon | C9: 2.5 | D9: 2.84 | E9: 2.23125 | F9: 320.95
B11: Exchange Rate | C11: EUR-USD | D11: EUR-GBP | E11: EUR-JPY
C12: 1.136 | D12: 0.8925 | E12: 128.38

Sheet VBA
B2: Applying VBA
B4: Product | C4: Price (Euro) | D4: Price (USD) | E4: Price (GBP) | F4: Price (JPY)
B5: Apple | C5: 6.25 | D5: =$C5*C$12 -> 7.1 | E5: 5.578125 | F5: 802.375
B6: Orange | C6: 4.75 | D6: 5.396 | E6: 4.239375 | F6: 609.805
B7: Banana | C7: 3.8 | D7: 4.3168 | E7: 3.3915 | F7: 487.844
B8: Pineapple | C8: 4.7 | D8: 5.3392 | E8: 4.19475 | F8: 603.386
B9: Lemon | C9: 2.5 | D9: 2.84 | E9: 2.23125 | F9: 320.95
B11: Exchange Rate | C11: EUR-USD | D11: EUR-GBP | E11: EUR-JPY
C12: 1.136 | D12: 0.8925 | E12: 128.38
